fUSD/lending_fUSD_20260404
["ID","MTS","AMOUNT","RATE_DAILY","PERIOD"]
[419720313,1775332338120,-500.0,0.00036273,9]
[419720314,1775332338129,-500.0,0.00036273,9]
[419720315,1775332338138,-1482.77,0.00036273,9]
[419720316,1775332338148,-1648.41,0.00036273,9]
[419720317,1775332338158,-784.21,0.00036273,9]
[419720318,1775332338167,-2678.07,0.00036273,9]
[419720319,1775332338176,-3119.66,0.00036273,9]
[419720320,1775332338186,-1057.26,0.00036273,9]
[419720321,1775332338195,-500.0,0.00036273,5]
[419720322,1775332338205,-3255.09,0.00036273,9]
[419720323,1775332338214,-513.76809452,0.00036273,9]
[419720324,1775332338224,-500.0,0.00036273,9]
[419720325,1775332338233,-126.75334936,0.00036273,9]
[419720326,1775332339140,-824.0,0.0001402,2]
[419720327,1775332339483,-445.5,0.0001402,2]
[419720328,1775332339498,-3117.5,0.0001402,2]
[419720329,1775332339507,-1030.05044105,0.0001402,2]
[419720330,1775332339518,-1037.32092717,0.0001402,2]
[419720331,1775332339529,-881.45672485,0.0001402,2]
[419720332,1775332339541,-1438.17190693,0.0001402,2]
[419720333,1775332339551,-180.933305,0.00014898,2]
[419720334,1775332339561,-6019.0,0.00015803,2]
[419720335,1775332339570,-6019.0,0.00018803,2]
[419720336,1775332339579,-190.00380858,0.00021005,2]
[419720337,1775332339589,-6019.0,0.00021803,2]
[419720338,1775332339597,-150.0,0.00024658,2]
[419720339,1775332339607,-6019.0,0.00024803,2]
[419720340,1775332339617,-150.0,0.0002589,2]
[419720341,1775332339626,-6019.0,0.00027803,2]
[419720342,1775332339707,-3831.03850801,0.00030803,2]
[419720343,1775332339718,-2187.96149199,0.00030803,2]
[419720344,1775332339727,-889.83566483,0.00033803,2]
[419720363,1775333413491,2305.59517589,0.000107,2]
[419720378,1775333432091,-24307.6550043,0.000107,2]
[419720381,1775333432101,-1000.0,0.00011967,2]
[419720383,1775333432110,-250.0,0.00012003,2]
[419720384,1775333432120,-4813.08560339,0.00012039,2]
[419720385,1775333432199,-186.91439661,0.00012039,2]
[419720386,1775333432208,-250.0,0.00012611,2]
[419720387,1775333432217,-1200.0,0.00012998,2]
[419720388,1775333432227,-2623.01791989,0.00012999,2]
[419720389,1775333432236,-250.0,0.00013,2]
[419720390,1775333432246,-300.0,0.00013049,2]
[419720391,1775333432255,-5389.8813808,0.0001305,2]
[419720392,1775333432265,-5000.0,0.00013164,2]
[419720393,1775333432275,-113.4416293,0.00013164,2]
[419720394,1775333432287,-136.5583707,0.00013164,2]
[419720395,1775333432296,-150.0,0.00013476,2]
[419720396,1775333432306,-4521.82993114,0.00013477,2]
[419720397,1775333432415,-900.0,0.00013477,2]
[419720414,1775333438165,-3487.1,0.00013477,2]
[419720415,1775333438216,-51807.58838252,0.00013477,2]
[419720416,1775333438328,-301.76454383,0.00013477,2]
[419720417,1775333438378,-113477.91714251,0.00013477,2]
[419720418,1775333438387,-339.79,0.00013556,2]
[419720419,1775333438397,-9231.95,0.00013628,2]
[419720420,1775333438406,-299.99,0.00013697,2]
[419720421,1775333438416,-500.0,0.00013698,2]
[419720422,1775333438426,-500.0,0.00013698,2]
[419720423,1775333438435,-500.0,0.00013698,2]
[419720424,1775333438445,-500.0,0.00013698,2]
[419720425,1775333438454,-500.0,0.00013698,2]
[419720426,1775333438464,-500.0,0.00013698,2]
[419720427,1775333438473,-500.0,0.00013698,2]
[419720428,1775333438482,-640.59083974,0.00013698,2]
[419720430,1775333438491,-500.0,0.00013698,2]
[419720432,1775333438501,-500.0,0.00013698,2]
[419720434,1775333438510,-433.75,0.00013698,2]
[419720436,1775333438519,-150.99,0.00013698,2]
[419720438,1775333438528,-4999.99,0.00013698,2]
[419720440,1775333438538,-999.99,0.00013698,2]
[419720442,1775333438547,-500.0,0.00013698,2]
[419720444,1775333438556,-500.0,0.00013698,2]
[419720446,1775333438565,-500.0,0.00013698,2]
[419720448,1775333438574,-500.0,0.00013698,2]
[419720450,1775333438583,-500.0,0.00013698,2]
[419720452,1775333438592,-497.12876422,0.00013698,2]
[419720455,1775333438602,-174.57,0.00013699,2]
[419720457,1775333438612,-9277.79,0.00013699,2]
[419720459,1775333438622,-9999.99,0.00013699,2]
[419720461,1775333438631,-8345.68,0.00013699,2]
[419720463,1775333438640,-1266.82,0.00013699,2]
[419720465,1775333438649,-150.99,0.00013699,2]
[419720467,1775333438658,-315.03,0.0001397,2]
[419720469,1775333438667,-1334.45186948,0.00014006,2]
[419720471,1775333438676,-1979.71839249,0.000142,2]
[419720473,1775333438686,-3657.207,0.00014259,2]
[419720475,1775333438695,-178.117,0.00014259,2]
[419720476,1775333438704,-237.43996902,0.00014259,2]
[419720478,1775333438713,-10240.52959954,0.00014259,2]
[419720480,1775333438723,-4698.33946168,0.00014259,2]
[419720482,1775333438732,-198.3901028,0.00014259,2]
[419720483,1775333438741,-206.11204568,0.00014259,2]
[419720484,1775333438752,-13865.02536044,0.00014259,2]
[419720485,1775333438761,-8092.03795978,0.00014259,2]
[419720486,1775333438771,-270.7801228,0.00014259,2]
[419720487,1775333438782,-1215.8335,0.00014259,2]
[419720488,1775333438791,-1680.0,0.00014298,2]
[419720489,1775333438800,-420.0,0.0001431,2]
[419720490,1775333438809,-731.89333735,0.00014349,2]
[419720491,1775333438818,-731.89333735,0.00014349,2]
[419720492,1775333438827,-151.0,0.00014356,2]
[419720493,1775333438836,-500.0,0.00014358,2]
[419720494,1775333438845,-500.0,0.00014358,2]
[419720495,1775333438855,-500.0,0.00014358,2]
[419720496,1775333438864,-500.0,0.00014358,2]
[419720497,1775333438873,-500.0,0.00014358,2]
[419720498,1775333438882,-500.0,0.00014358,2]
[419720499,1775333438891,-500.0,0.00014358,2]
[419720500,1775333438901,-500.0,0.00014358,2]
[419720501,1775333438910,-500.0,0.00014358,2]
[419720502,1775333438919,-556.40197381,0.00014358,2]
[419720503,1775333438928,-500.0,0.00014358,2]
[419720504,1775333438937,-427.66291618,0.00014358,2]
[419720505,1775333438946,-500.0,0.00014358,2]
[419720506,1775333438956,-500.0,0.00014358,2]
[419720507,1775333438965,-500.0,0.00014358,2]
[419720508,1775333438974,-500.0,0.00014358,2]
[419720509,1775333438983,-604.23,0.00014358,2]
[419720510,1775333438992,-500.0,0.00014358,2]
[419720511,1775333439002,-500.0,0.00014358,2]
[419720512,1775333439011,-500.0,0.00014358,2]
[419720513,1775333439020,-500.0,0.00014358,2]
[419720514,1775333439029,-500.0,0.00014358,2]
[419720515,1775333439038,-500.0,0.00014358,2]
[419720516,1775333439047,-500.0,0.00014358,2]
[419720517,1775333439056,-500.0,0.00014358,2]
[419720518,1775333439065,-500.0,0.00014358,2]
[419720519,1775333439074,-500.0,0.00014358,2]
[419720520,1775333439086,-500.0,0.00014358,2]
[419720521,1775333439096,-500.0,0.00014358,2]
[419720522,1775333439105,-500.0,0.00014358,2]
[419720523,1775333439114,-500.0,0.00014358,2]
[419720524,1775333439123,-500.0,0.00014358,2]
[419720525,1775333439133,-500.0,0.00014358,2]
[419720526,1775333439143,-500.0,0.00014358,2]
[419720527,1775333439152,-500.0,0.00014358,2]
[419720528,1775333439161,-500.0,0.00014358,2]
[419720529,1775333439171,-622.04091826,0.00014358,2]
[419720530,1775333439180,-268.38739383,0.00014358,2]
[419720531,1775333439188,-500.0,0.00014358,2]
[419720532,1775333439198,-319.17013709,0.00014358,2]
[419720533,1775333439207,-500.0,0.00014358,2]
[419720534,1775333439216,-277.76869217,0.00014358,2]
[419720535,1775333439225,-500.0,0.00014358,2]
[419720536,1775333439234,-500.0,0.00014358,2]
[419720537,1775333439243,-500.0,0.00014358,2]
[419720538,1775333439252,-540.48160133,0.00014358,2]
[419720539,1775333439264,-2500000.0,0.00014359,2]
[419720540,1775333439273,-1500000.0,0.00014359,2]
[419720541,1775333439283,-500.0,0.00014373,2]
[419720542,1775333439292,-500.0,0.00014373,2]
[419720543,1775333439301,-500.0,0.00014373,2]
[419720544,1775333439310,-500.0,0.00014373,2]
[419720545,1775333439319,-500.0,0.00014373,2]
[419720546,1775333439328,-500.0,0.00014373,2]
[419720547,1775333439338,-500.0,0.00014373,2]
[419720548,1775333439347,-4698.33946167,0.00014493,2]
[419720549,1775333439356,-13865.02536039,0.00014587,2]
[419720550,1775333439366,-255.0,0.00014595,2]
[419720551,1775333439376,-384.44,0.00014689,2]
[419720552,1775333439385,-4698.33946167,0.00014728,2]
[419720553,1775333439394,-289.5275225,0.00014908,2]
[419720554,1775333439404,-13865.02536039,0.00014915,2]
[419720555,1775333439413,-1000.0,0.00014921,2]
[419720556,1775333439423,-1000.0,0.00014921,2]
[419720557,1775333439433,-1000.0,0.00014921,2]
[419720558,1775333439443,-1000.0,0.00014921,2]
[419720559,1775333439452,-1000.0,0.00014921,2]
[419720560,1775333439463,-1000.0,0.00014921,2]
[419720561,1775333439472,-1000.0,0.00014921,2]
[419720562,1775333439481,-4698.33946167,0.00014962,2]
[419720563,1775333439492,-165.85706597,0.00014985,2]
[419720564,1775333439501,-171.04306227,0.00014985,2]
[419720565,1775333439511,-222.0928599,0.00014985,2]
[419720566,1775333439522,-225.10571802,0.00014985,2]
[419720567,1775333439532,-300.0,0.00015,2]
[419720568,1775333439542,-3044.58224996,0.00015,2]
[419720569,1775333439552,-223387.1907086,0.00015,7]
[419720570,1775333439563,-800.0,0.00015068,2]
[419720571,1775333439572,-160.0,0.00015076,2]
[419720572,1775333439582,-206.11204568,0.0001508,2]
[419720573,1775333439591,-8092.03795977,0.0001508,2]
[419720574,1775333439600,-154.78244338,0.0001509,2]
[419720575,1775333439609,-4698.33946167,0.00015197,2]
[419720576,1775333439618,-1406.48,0.000152,2]
[419720577,1775333439627,-13865.02536039,0.00015244,2]
[419720578,1775333439637,-476.3220519,0.000153,2]
[419720579,1775333439646,-440.07354191,0.000153,2]
[419720580,1775333439655,-1517.64,0.000153,2]
[419720581,1775333439666,-177.1231317,0.00015301,2]
[419720582,1775333439675,-168.0,0.00015397,2]
[419720583,1775333439684,-512.53794019,0.000154,2]
[419720584,1775333439693,-2000.0,0.00015401,2]
[419720585,1775333439703,-168.0,0.00015402,2]
[419720586,1775333439712,-213.22024855,0.00015408,2]
[419720587,1775333439721,-5888.0,0.00015413,2]
[419720588,1775333439730,-4698.33946167,0.00015431,2]
[419720589,1775333439739,-168.0,0.00015444,2]
[419720590,1775333439748,-1500.0,0.00015468,2]
[419720591,1775333439756,-1500.0,0.00015468,2]
[419720592,1775333439765,-1500.0,0.00015468,2]
[419720593,1775333439774,-1500.0,0.00015468,2]
[419720594,1775333439783,-1500.0,0.00015468,2]
[419720595,1775333439792,-1500.0,0.00015468,2]
[419720597,1775333439801,-1500.0,0.00015468,2]
[419720598,1775333439810,-768.85683146,0.000155,3]
[419720599,1775333439820,-1231.35459603,0.000155,2]
[419720600,1775333439828,-2000.0,0.00015501,2]
[419720601,1775333439837,-4000.0,0.00015507,2]
[419720602,1775333439847,-168.0,0.00015559,2]
[419720603,1775333439858,-13865.02536039,0.00015572,2]
[419720604,1775333439868,-2000.0,0.00015601,2]
[419720605,1775333439878,-168.0,0.00015624,2]
[419720606,1775333439887,-855.35507685,0.00015634,2]
[419720607,1775333439896,-168.0,0.00015648,2]
[419720608,1775333439905,-10240.52959953,0.00015664,2]
[419720609,1775333439915,-4698.33946167,0.00015666,2]
[419720610,1775333439924,-201.903455,0.0001568,7]
[419720611,1775333439932,-587.0,0.00015692,2]
[419720612,1775333439943,-2000.0,0.00015701,2]
[419720613,1775333439954,-168.0,0.00015701,2]
[419720614,1775333439965,-168.0,0.00015708,2]
[419720615,1775333439975,-208.6117421,0.00015709,2]
[419720616,1775333439985,-18171.14229471,0.0001572,2]
[419720617,1775333441111,-2087.35561169,0.0001572,2]
[419720618,1775333441167,-511.95657192,0.0001572,2]
[419720622,1775333443159,-3228.61995886,0.0001572,2]
[419720628,1775333446042,-515.0,0.00013111,2]
[419720629,1775333446051,-649.30778418,0.0001572,2]
[419720630,1775333446063,-439.13179268,0.0001572,2]
[419720631,1775333446149,-1085.31838461,0.0001572,2]
[419720632,1775333446255,-1343.75999998,0.0001572,2]
[419720635,1775334538965,1974.94062421,9.747e-05,2]
[419720641,1775334632329,-150.0,0.00011507,2]
[419720642,1775334632340,-434.84684353,0.00011507,2]
[419720643,1775334632384,-329.67315647,0.00011507,2]
[419720644,1775334632394,-150.0,0.00012468,2]
[419720645,1775334632403,-238.71,0.00012629,2]
[419720646,1775334632413,-2000.0,0.00012732,2]
[419720647,1775334632422,-384.44,0.00012881,2]
[419720648,1775334632431,-2696.92,0.00012885,2]
[419720649,1775334632440,-900.0,0.00012885,7]
[419720650,1775334632449,-300.0,0.00013098,2]
[419720651,1775334632459,-1200.0,0.00013098,2]
[419720652,1775334632467,-150.0,0.00013098,2]
[419720653,1775334632477,-270.7801228,0.00013099,2]
[419720654,1775334632487,-10695.7250899,0.00013099,2]
[419720656,1775334632510,-376.36,0.00013099,2]
[419720657,1775334632521,-14728.57388724,0.00013099,2]
[419720658,1775334632530,-515.0,0.00013111,2]
[419720659,1775334632540,-200.0,0.00013143,2]
[419720660,1775334632550,-731.89333735,0.00013167,2]
[419720662,1775334632559,-500.0,0.00013173,2]
[419720664,1775334632568,-218.30362481,0.00013173,2]
[419720666,1775334632578,-500.0,0.00013173,2]
[419720668,1775334632587,-500.0,0.00013173,2]
[419720670,1775334632596,-500.0,0.00013173,2]
[419720672,1775334632606,-503.0948792,0.00013173,2]
[419720673,1775334632615,-503.33902611,0.00013173,2]
[419720674,1775334632624,-500.0,0.00013173,2]
[419720675,1775334632634,-500.0,0.00013173,2]
[419720676,1775334632643,-500.0,0.00013176,2]
[419720677,1775334632653,-500.0,0.00013176,2]
[419720678,1775334632663,-383.41056261,0.00013176,2]
[419720679,1775334632672,-167.33092782,0.00013176,2]
[419720680,1775334632681,-248.073548,0.00013176,2]
[419720681,1775334632691,-500.0,0.00013176,2]
[419720682,1775334632700,-500.0,0.00013176,2]
[419720683,1775334632710,-500.0,0.00013176,2]
[419720684,1775334632720,-500.0,0.00013176,2]
[419720685,1775334632730,-598.81448156,0.00013176,2]
[419720686,1775334632739,-218.24098882,0.00013176,2]
[419720687,1775334632749,-500.0,0.00013176,2]
[419720688,1775334632758,-500.0,0.00013176,2]
[419720689,1775334632768,-500.0,0.00013176,2]
[419720690,1775334632778,-500.0,0.00013176,2]
[419720691,1775334632787,-500.0,0.00013176,2]
[419720692,1775334632796,-500.0,0.00013176,2]
[419720693,1775334632806,-500.0,0.00013176,2]
[419720694,1775334632815,-500.0,0.00013176,2]
[419720695,1775334632825,-497.12876422,0.00013176,2]
[419720696,1775334632834,-21171.69118534,0.00013177,2]
[419720697,1775334632846,-15911.93800496,0.00013177,2]
[419720698,1775334632866,-515.95471448,0.00013177,2]
[419720704,1775334638471,-1462400.41609522,0.00013177,2]
[419720705,1775334638481,-1979.71839249,0.000132,2]
[419720706,1775334638491,-1215.8335,0.00013277,2]
[419720707,1775334638500,-178.117,0.00013277,2]
[419720708,1775334638510,-3657.207,0.00013277,2]
[419720709,1775334638520,-999.99,0.00013277,2]
[419720710,1775334638531,-15109.14,0.00013277,2]
[419720711,1775334638540,-150.99,0.00013277,2]
[419720712,1775334638550,-8345.68,0.00013277,2]
[419720713,1775334638560,-299.99,0.00013277,2]
[419720714,1775334638569,-4999.99,0.00013277,2]
[419720715,1775334638579,-9999.99,0.00013277,2]
[419720716,1775334638589,-150.99,0.00013277,2]
[419720717,1775334638600,-203.51997348,0.00013277,2]
[419720718,1775334638610,-479.43,0.00013277,2]
[419720719,1775334638620,-156.39703094,0.00013277,2]
[419720720,1775334638630,-15779.83901405,0.00013277,2]
[419720721,1775334638640,-412.22409137,0.00013277,2]
[419720722,1775334638650,-8092.03795978,0.00013277,2]
[419720723,1775334638659,-198.3901028,0.00013277,2]
[419720724,1775334638669,-238.71,0.00013331,2]
[419720725,1775334638679,-25800.65897705,0.00013357,2]
[419720726,1775334638689,-731.89333735,0.00013367,2]
[419720727,1775334638699,-500.0,0.00013373,2]
[419720728,1775334638709,-500.0,0.00013373,2]
[419720729,1775334638719,-2500000.0,0.00013377,2]
[419720730,1775334638728,-1000.0,0.00013377,2]
[419720731,1775334638739,-3240.0,0.00013425,2]
[419720732,1775334638749,-15779.83901405,0.00013515,2]
[419720733,1775334638759,-479.43,0.00013551,2]
[419720734,1775334638770,-273.02,0.00013558,2]
[419720735,1775334638780,-25800.65897705,0.00013614,2]
[419720736,1775334638789,-500.0,0.00013698,2]
[419720738,1775334638799,-500.0,0.00013698,2]
[419720740,1775334638810,-500.0,0.00013698,2]
[419720742,1775334638819,-500.0,0.00013698,2]
[419720744,1775334638829,-500.0,0.00013698,2]
[419720746,1775334638839,-500.0,0.00013698,2]
[419720748,1775334638849,-500.0,0.00013698,2]
[419720750,1775334638858,-529.28576111,0.00013698,2]
[419720752,1775334638868,-500.0,0.00013698,2]
[419720754,1775334638878,-500.0,0.00013698,2]
[419720756,1775334638888,-500.0,0.00013698,2]
[419720757,1775334638897,-500.0,0.00013698,2]
[419720759,1775334638907,-500.0,0.00013698,2]
[419720761,1775334638917,-500.0,0.00013698,2]
[419720763,1775334638926,-500.0,0.00013698,2]
[419720764,1775334638935,-500.0,0.00013698,2]
[419720766,1775334638944,-500.0,0.00013698,2]
[419720768,1775334638954,-500.0,0.00013698,2]
[419720770,1775334638964,-500.0,0.00013698,2]
[419720771,1775334638973,-500.0,0.00013698,2]
[419720773,1775334638983,-500.0,0.00013698,2]
[419720775,1775334638992,-500.0,0.00013698,2]
[419720777,1775334639002,-500.0,0.00013698,2]
[419720779,1775334639012,-500.0,0.00013698,2]
[419720780,1775334639021,-500.0,0.00013698,2]
[419720782,1775334639031,-500.0,0.00013698,2]
[419720784,1775334639040,-520.83,0.00013698,2]
[419720786,1775334639050,-520.83,0.00013698,2]
[419720788,1775334639059,-520.83,0.00013698,2]
[419720790,1775334639068,-520.83,0.00013698,2]
[419720791,1775334639078,-520.83,0.00013698,2]
[419720793,1775334639087,-520.83,0.00013698,2]
[419720795,1775334639097,-520.83,0.00013698,2]
[419720797,1775334639107,-520.83,0.00013698,2]
[419720799,1775334639117,-520.83,0.00013698,2]
[419720800,1775334639127,-520.83,0.00013698,2]
[419720802,1775334639137,-500.0,0.00013698,2]
[419720804,1775334639147,-500.0,0.00013698,2]
[419720806,1775334639156,-500.0,0.00013698,2]
[419720808,1775334639167,-500.0,0.00013698,2]
[419720810,1775334639177,-500.0,0.00013698,2]
[419720812,1775334639187,-475.31700749,0.00013698,2]
[419720813,1775334639196,-500.0,0.00013698,2]
[419720815,1775334639205,-507.27121127,0.00013698,2]
[419720817,1775334639215,-500.0,0.00013698,2]
[419720819,1775334639224,-500.0,0.00013698,2]
[419720821,1775334639233,-500.0,0.00013698,2]
[419720823,1775334639242,-722.32,0.00013698,2]
[419720824,1775334639251,-722.32,0.00013698,2]
[419720826,1775334639261,-722.32,0.00013698,2]
[419720828,1775334639270,-722.32,0.00013698,2]
[419720830,1775334639280,-722.32,0.00013698,2]
[419720832,1775334639289,-722.32,0.00013698,2]
[419720834,1775334639298,-722.32,0.00013698,2]
[419720836,1775334639307,-722.32,0.00013698,2]
[419720837,1775334639316,-722.32,0.00013698,2]
[419720839,1775334639326,-722.32,0.00013698,2]
[419720841,1775334639335,-500.0,0.00013698,2]
[419720843,1775334639346,-500.0,0.00013698,2]
[419720845,1775334639355,-500.0,0.00013698,2]
[419720846,1775334639364,-500.0,0.00013698,2]
[419720848,1775334639374,-500.0,0.00013698,2]
[419720850,1775334639383,-500.0,0.00013698,2]
[419720851,1775334639392,-500.0,0.00013698,2]
[419720852,1775334639402,-500.0,0.00013698,2]
[419720853,1775334639411,-500.0,0.00013698,2]
[419720854,1775334639421,-500.0,0.00013698,2]
[419720855,1775334639430,-500.0,0.00013698,2]
[419720856,1775334639440,-500.0,0.00013698,2]
[419720857,1775334639450,-500.0,0.00013698,2]
[419720858,1775334639459,-500.0,0.00013698,2]
[419720859,1775334639469,-500.0,0.00013698,2]
[419720860,1775334639479,-500.0,0.00013698,2]
[419720861,1775334639488,-500.0,0.00013698,2]
[419720862,1775334639498,-372.04738968,0.00013698,2]
[419720863,1775334639507,-500.0,0.00013698,2]
[419720864,1775334639517,-500.0,0.00013698,2]
[419720865,1775334639526,-500.0,0.00013698,2]
[419720866,1775334639535,-500.0,0.00013698,2]
[419720867,1775334639545,-398.43669082,0.00013698,2]
[419720868,1775334639554,-500.0,0.00013698,2]
[419720869,1775334639564,-500.0,0.00013698,2]
[419720870,1775334639573,-500.0,0.00013698,2]
[419720871,1775334639583,-540.38303843,0.00013698,2]
[419720872,1775334639592,-500.0,0.00013698,2]
[419720873,1775334639602,-500.0,0.00013698,2]
[419720874,1775334639612,-500.0,0.00013698,2]
[419720875,1775334639621,-500.0,0.00013698,2]
[419720876,1775334639630,-500.0,0.00013698,2]
[419720877,1775334639641,-500.0,0.00013698,2]
[419720878,1775334639650,-500.0,0.00013698,2]
[419720879,1775334639659,-500.0,0.00013698,2]
[419720880,1775334639669,-500.0,0.00013698,2]
[419720881,1775334639679,-500.0,0.00013698,2]
[419720882,1775334639689,-500.0,0.00013698,2]
[419720883,1775334639698,-500.0,0.00013698,2]
[419720884,1775334639708,-500.0,0.00013698,2]
[419720885,1775334639717,-500.0,0.00013698,2]
[419720886,1775334639726,-561.59815036,0.00013698,2]
[419720887,1775334639735,-500.0,0.00013698,2]
[419720888,1775334639744,-500.0,0.00013698,2]
[419720889,1775334639754,-500.0,0.00013698,2]
[419720890,1775334639764,-500.0,0.00013698,2]
[419720891,1775334639773,-500.0,0.00013698,2]
[419720892,1775334639782,-500.0,0.00013698,2]
[419720893,1775334639792,-500.0,0.00013698,2]
[419720894,1775334639802,-500.0,0.00013698,2]
[419720895,1775334639811,-500.0,0.00013698,2]
[419720896,1775334639820,-500.0,0.00013698,2]
[419720897,1775334639830,-500.0,0.00013698,2]
[419720898,1775334639839,-500.0,0.00013698,2]
[419720899,1775334639848,-500.0,0.00013698,2]
[419720900,1775334639858,-500.0,0.00013698,2]
[419720901,1775334639867,-500.0,0.00013698,2]
[419720902,1775334639877,-500.0,0.00013698,2]
[419720903,1775334639887,-500.0,0.00013698,2]
[419720904,1775334639896,-500.0,0.00013698,2]
[419720905,1775334639907,-500.0,0.00013698,2]
[419720906,1775334639916,-500.0,0.00013698,2]
[419720907,1775334639926,-500.0,0.00013698,2]
[419720908,1775334639938,-500.0,0.00013698,2]
[419720909,1775334639948,-500.0,0.00013698,2]
[419720910,1775334639958,-500.0,0.00013698,2]
[419720911,1775334639968,-500.0,0.00013698,2]
[419720912,1775334639978,-500.0,0.00013698,2]
[419720913,1775334639989,-500.0,0.00013698,2]
[419720914,1775334639998,-500.0,0.00013698,2]
[419720915,1775334640008,-500.0,0.00013698,2]
[419720916,1775334640017,-500.0,0.00013698,2]
[419720917,1775334640027,-500.0,0.00013698,2]
[419720918,1775334640036,-500.0,0.00013698,2]
[419720919,1775334640046,-150.0,0.00013699,2]
[419720920,1775334640055,-150.0,0.00013699,2]
[419720921,1775334640065,-166.66,0.00013699,2]
[419720922,1775334640075,-200.0,0.00013699,2]
[419720923,1775334640085,-500.0,0.00013699,2]
[419720924,1775334640095,-500.0,0.00013699,2]
[419720925,1775334640105,-500.0,0.00013699,2]
[419720926,1775334640114,-500.0,0.00013699,2]
[419720927,1775334640124,-500.0,0.00013699,2]
[419720928,1775334640133,-500.0,0.00013699,2]
[419720929,1775334640143,-500.0,0.00013699,2]
[419720930,1775334640152,-500.0,0.00013699,2]
[419720931,1775334640163,-500.0,0.00013699,2]
[419720932,1775334640174,-500.0,0.00013699,2]
[419720933,1775334640184,-500.0,0.00013699,2]
[419720934,1775334640194,-500.0,0.00013699,2]
[419720935,1775334640204,-312.69903259,0.00013699,2]
[419720936,1775334640214,-501.69279177,0.00013699,2]
[419720937,1775334640224,-500.0,0.00013699,2]
[419720938,1775334640234,-500.0,0.00013699,2]
[419720939,1775334640244,-490.65099871,0.00013699,2]
[419720940,1775334640254,-500.0,0.00013699,2]
[419720941,1775334640264,-500.0,0.00013699,2]
[419720942,1775334640274,-343.00680173,0.00013699,2]
[419720943,1775334640283,-500.0,0.00013699,2]
[419720944,1775334640293,-500.0,0.00013699,2]
[419720945,1775334640302,-500.0,0.00013699,2]
[419720946,1775334640311,-500.0,0.00013699,2]
[419720947,1775334640320,-7351.94,0.00013699,2]
[419720948,1775334640330,-4822.17,0.00013699,2]
[419720949,1775334640339,-181.28,0.00013699,2]
[419720950,1775334640349,-500.0,0.00013699,2]
[419720951,1775334640359,-388.62988323,0.00013699,2]
[419720952,1775334640368,-203.51997344,0.00013714,2]
[419720953,1775334640378,-1000.0,0.00013721,2]
[419720954,1775334640387,-1000.0,0.00013721,2]
[419720955,1775334640397,-1000.0,0.00013721,2]
[419720956,1775334640408,-1000.0,0.00013721,2]
[419720957,1775334640417,-1000.0,0.00013721,2]
[419720958,1775334640427,-1000.0,0.00013721,2]
[419720959,1775334640437,-15779.83901405,0.00013753,2]
[419720960,1775334640446,-479.43,0.00013825,2]
[419720961,1775334640456,-166.66,0.00013836,2]
[419720962,1775334640466,-722.32,0.00013859,2]
[419720963,1775334640475,-500.0,0.00013859,2]
[419720964,1775334640486,-196.18640061,0.00013859,2]
[419720965,1775334640496,-25800.65897705,0.00013872,2]
[419720966,1775334640506,-500.0,0.00013873,2]
[419720967,1775334640515,-500.0,0.00013873,2]
[419720968,1775334640525,-500.0,0.00013873,2]
[419720969,1775334640535,-500.0,0.00013873,2]
[419720970,1775334640545,-500.0,0.00013873,2]